[Event "Early-Titled-Tuesday-Blitz-January-23-2024"]
[Site "Chess.com"]
[Date "2024.01.23"]
[Round "1"]
[White "marcodobrikov"]
[Black "Chempiblinka"]
[Result "1-0"]
[WhiteElo "2640"]
[BlackElo "2322"]
[TimeControl "180+1"]
[EndTime "8:04:46 PST"]
[Termination "marcodobrikov won by resignation"]

1. c4 {[%clk 0:02:59.9]} 1... Nf6 {[%clk 0:03:00]} 2. h4 {[%clk 0:02:56.5]} 2...
g6 {[%clk 0:03:00.9]} 3. Nc3 {[%clk 0:02:53.2]} 3... h5 {[%clk 0:03:01.8]} 4. e4
{[%clk 0:02:52.6]} 4... d6 {[%clk 0:03:00.8]} 5. d4 {[%clk 0:02:52.8]} 5... Bg7
{[%clk 0:02:58]} 6. f3 {[%clk 0:02:52.1]} 6... c5 {[%clk 0:02:37.6]} 7. d5
{[%clk 0:02:50.5]} 7... O-O {[%clk 0:02:32.3]} 8. Bg5 {[%clk 0:02:49.1]} 8... a6
{[%clk 0:02:19.4]} 9. Qd2 {[%clk 0:02:49.1]} 9... b5 {[%clk 0:02:14.1]} 10. cxb5
{[%clk 0:02:49.1]} 10... axb5 {[%clk 0:02:15]} 11. Bxb5 {[%clk 0:02:49.6]} 11...
Ba6 {[%clk 0:02:15.1]} 12. Nge2 {[%clk 0:02:48.5]} 12... Qa5 {[%clk 0:02:13.4]}
13. a4 {[%clk 0:02:43]} 13... Nbd7 {[%clk 0:01:59.1]} 14. Ra3 {[%clk 0:02:42.5]}
14... Nb6 {[%clk 0:01:57.7]} 15. b3 {[%clk 0:02:42.3]} 15... Qb4 {[%clk
0:01:54.9]} 16. Qa2 {[%clk 0:02:31.7]} 16... Bxb5 {[%clk 0:01:52.7]} 17. Bd2
{[%clk 0:02:29.5]} 17... Nc4 {[%clk 0:00:39.5]} 18. Nxb5 {[%clk 0:02:18.4]}
18... Nxd2 {[%clk 0:00:16.3]} 19. Qxd2 {[%clk 0:02:19.3]} 19... Qxd2+ {[%clk
0:00:11.1]} 20. Kxd2 {[%clk 0:02:20.2]} 20... Nd7 {[%clk 0:00:10]} 21. a5 {[%clk
0:02:17.9]} 21... Nb6 {[%clk 0:00:10.9]} 22. axb6 {[%clk 0:02:17.3]} 22... Rxa3
{[%clk 0:00:10.9]} 23. Nxa3 {[%clk 0:02:17.5]} 23... Rb8 {[%clk 0:00:11.8]} 24.
Nc4 {[%clk 0:02:17.4]} 1-0

[Event "Early-Titled-Tuesday-Blitz-January-23-2024"]
[Site "Chess.com"]
[Date "2024.01.23"]
[Round "1"]
[White "eljanov"]
[Black "colegiodemadrid"]
[Result "1-0"]
[WhiteElo "2849"]
[BlackElo "2469"]
[TimeControl "180+1"]
[EndTime "8:05:07 PST"]
[Termination "eljanov won by resignation"]

1. e4 {[%clk 0:03:00.9]} 1... c5 {[%clk 0:02:56.6]} 2. Nf3 {[%clk 0:03:00.5]}
2... d6 {[%clk 0:02:56.9]} 3. d4 {[%clk 0:03:00.2]} 3... cxd4 {[%clk 0:02:57.8]}
4. Nxd4 {[%clk 0:03:00.7]} 4... Nf6 {[%clk 0:02:54.1]} 5. Nc3 {[%clk 0:03:00.7]}
5... a6 {[%clk 0:02:54.7]} 6. Be2 {[%clk 0:03:00.7]} 6... e6 {[%clk 0:02:54.2]}
7. Be3 {[%clk 0:02:59.8]} 7... Nbd7 {[%clk 0:02:54.7]} 8. g4 {[%clk 0:02:56.8]}
8... h6 {[%clk 0:02:41.6]} 9. Qd2 {[%clk 0:02:44.7]} 9... b5 {[%clk 0:02:41.5]}
10. a3 {[%clk 0:02:44]} 10... Nb6 {[%clk 0:02:41.3]} 11. O-O-O {[%clk
0:02:39.5]} 11... Bb7 {[%clk 0:02:41.3]} 12. f3 {[%clk 0:02:38.2]} 12... Nfd7
{[%clk 0:02:41.7]} 13. f4 {[%clk 0:02:25.4]} 13... Rc8 {[%clk 0:02:39.5]} 14. h4
{[%clk 0:02:21.6]} 14... Rxc3 {[%clk 0:02:29.4]} 15. Qxc3 {[%clk 0:02:20.5]}
15... Bxe4 {[%clk 0:02:29.9]} 16. Bf3 {[%clk 0:02:17.7]} 16... Na4 {[%clk
0:02:22.9]} 17. Qd2 {[%clk 0:02:11.8]} 17... Ndc5 {[%clk 0:02:07.2]} 18. f5
{[%clk 0:02:03.8]} 18... e5 {[%clk 0:01:58.7]} 19. Bxe4 {[%clk 0:01:43.3]} 19...
Nxe4 {[%clk 0:01:58.2]} 20. Qg2 {[%clk 0:01:43.2]} 20... d5 {[%clk 0:01:35.4]}
21. Nc6 {[%clk 0:01:43.3]} 21... Qc7 {[%clk 0:00:42.5]} 22. Rxd5 {[%clk
0:01:40.5]} 22... Qxc6 {[%clk 0:00:24.7]} 23. Rxe5+ {[%clk 0:01:40.2]} 23... Be7
{[%clk 0:00:23.9]} 24. Qxe4 {[%clk 0:01:40.4]} 1-0

[Event "Early-Titled-Tuesday-Blitz-January-23-2024"]
[Site "Chess.com"]
[Date "2024.01.23"]
[Round "1"]
[White "wannabe2700"]
[Black "AsselLesbekova"]
[Result "1-0"]
[WhiteElo "2627"]
[BlackElo "2294"]
[TimeControl "180+1"]
[EndTime "8:05:21 PST"]
[Termination "wannabe2700 won by resignation"]

1. b3 {[%clk 0:03:00.1]} 1... Nf6 {[%clk 0:02:57.2]} 2. Bb2 {[%clk 0:03:00.1]}
2... g6 {[%clk 0:02:57.3]} 3. Nf3 {[%clk 0:03:00.1]} 3... Bg7 {[%clk 0:02:57.9]}
4. g3 {[%clk 0:03:00.7]} 4... O-O {[%clk 0:02:58.2]} 5. Bg2 {[%clk 0:03:00.9]}
5... d6 {[%clk 0:02:58.7]} 6. d4 {[%clk 0:03:00.8]} 6... c5 {[%clk 0:02:51.8]}
7. O-O {[%clk 0:02:56.9]} 7... e6 {[%clk 0:02:39.9]} 8. dxc5 {[%clk 0:02:52.7]}
8... dxc5 {[%clk 0:02:40.8]} 9. Na3 {[%clk 0:02:47.8]} 9... Nd5 {[%clk
0:02:18.1]} 10. Bxg7 {[%clk 0:02:45.3]} 10... Kxg7 {[%clk 0:02:19]} 11. c4
{[%clk 0:02:39.2]} 11... Ne7 {[%clk 0:02:10]} 12. Qc2 {[%clk 0:02:38.1]} 12...
Nbc6 {[%clk 0:02:07.2]} 13. Rfd1 {[%clk 0:02:37.1]} 13... Qa5 {[%clk 0:02:00]}
14. Nb5 {[%clk 0:02:36.7]} 14... Nf5 {[%clk 0:01:53]} 15. g4 {[%clk 0:02:29.4]}
15... Nfd4 {[%clk 0:01:47.9]} 16. Nfxd4 {[%clk 0:02:28.3]} 16... Nxd4 {[%clk
0:01:48.4]} 17. Nxd4 {[%clk 0:02:28.3]} 17... cxd4 {[%clk 0:01:49.3]} 18. Rxd4
{[%clk 0:02:28.2]} 18... e5 {[%clk 0:01:46.1]} 19. Rd5 {[%clk 0:02:27.3]} 19...
Qc7 {[%clk 0:01:46.5]} 20. h3 {[%clk 0:02:25.4]} 20... Be6 {[%clk 0:01:44.7]}
21. Rd2 {[%clk 0:02:24.6]} 21... Rad8 {[%clk 0:01:41.9]} 22. Rad1 {[%clk
0:02:23.1]} 22... h5 {[%clk 0:01:22.1]} 23. gxh5 {[%clk 0:02:21.1]} 23... gxh5
{[%clk 0:01:18.1]} 24. Rxd8 {[%clk 0:02:20.4]} 24... Rxd8 {[%clk 0:01:19]} 25.
Rxd8 {[%clk 0:02:20.7]} 25... Qxd8 {[%clk 0:01:19.9]} 26. Qe4 {[%clk 0:02:17.3]}
26... Qd4 {[%clk 0:01:08.5]} 27. Qxd4 {[%clk 0:02:12.6]} 27... exd4 {[%clk
0:01:09.4]} 28. Bxb7 {[%clk 0:02:09.9]} 28... Kf6 {[%clk 0:01:03.2]} 29. Kh2
{[%clk 0:02:09.6]} 29... Ke5 {[%clk 0:01:00.6]} 30. Kg3 {[%clk 0:02:06.5]} 30...
Kd6 {[%clk 0:00:57]} 31. h4 {[%clk 0:02:04.9]} 31... Kc5 {[%clk 0:00:50.8]} 32.
Bf3 {[%clk 0:02:04.4]} 32... Kb4 {[%clk 0:00:49.4]} 33. Bxh5 {[%clk 0:01:59.9]}
33... Ka3 {[%clk 0:00:49.9]} 34. c5 {[%clk 0:01:54.8]} 34... Kxa2 {[%clk
0:00:48.1]} 35. c6 {[%clk 0:01:55.2]} 35... Kxb3 {[%clk 0:00:43.5]} 36. c7
{[%clk 0:01:56.1]} 36... a5 {[%clk 0:00:39.9]} 37. Bxf7 {[%clk 0:01:55.6]} 1-0

[Event "Early-Titled-Tuesday-Blitz-January-23-2024"]
[Site "Chess.com"]
[Date "2024.01.23"]
[Round "1"]
[White "jraosam"]
[Black "Nouali_Mohamed"]
[Result "0-1"]
[WhiteElo "1909"]
[BlackElo "2546"]
[TimeControl "180+1"]
[EndTime "8:05:25 PST"]
[Termination "Nouali_Mohamed won on time"]

1. e4 {[%clk 0:00:14.8]} 1... c5 {[%clk 0:02:59.6]} 2. Nf3 {[%clk 0:00:14.7]}
2... Nc6 {[%clk 0:02:59.4]} 3. d4 {[%clk 0:00:13.5]} 3... cxd4 {[%clk
0:03:00.3]} 4. Nxd4 {[%clk 0:00:12.6]} 4... g6 {[%clk 0:03:00.6]} 5. Be3 {[%clk
0:00:10.9]} 5... Bg7 {[%clk 0:03:00.4]} 6. c3 {[%clk 0:00:08]} 6... Nf6 {[%clk
0:03:00.2]} 7. f3 {[%clk 0:00:06.7]} 7... O-O {[%clk 0:03:00.2]} 8. Nxc6 {[%clk
0:00:06.2]} 8... bxc6 {[%clk 0:03:00.1]} 9. Bd3 {[%clk 0:00:07.1]} 9... d5
{[%clk 0:02:56.7]} 10. e5 {[%clk 0:00:05.3]} 10... Nd7 {[%clk 0:02:57.1]} 11. f4
{[%clk 0:00:05.2]} 11... f6 {[%clk 0:02:42.9]} 12. exf6 {[%clk 0:00:06.1]} 12...
Nxf6 {[%clk 0:02:22]} 13. O-O {[%clk 0:00:05.7]} 13... e5 {[%clk 0:01:30.9]} 14.
fxe5 {[%clk 0:00:02.4]} 14... Ng4 {[%clk 0:01:30.6]} 15. Rxf8+ {[%clk
0:00:02.4]} 15... Qxf8 {[%clk 0:01:31.5]} 0-1

[Event "Early-Titled-Tuesday-Blitz-January-23-2024"]
[Site "Chess.com"]
[Date "2024.01.23"]
[Round "1"]
[White "SpongeBob_03"]
[Black "AsterPhoenix"]
[Result "0-1"]
[WhiteElo "2201"]
[BlackElo "2586"]
[TimeControl "180+1"]
[EndTime "8:05:30 PST"]
[Termination "AsterPhoenix won by resignation"]

1. e4 {[%clk 0:03:00.9]} 1... c5 {[%clk 0:02:59.6]} 2. Nf3 {[%clk 0:02:58.7]}
2... e6 {[%clk 0:02:59.8]} 3. c4 {[%clk 0:02:57.8]} 3... Nc6 {[%clk 0:02:57.7]}
4. Nc3 {[%clk 0:02:57.9]} 4... Nf6 {[%clk 0:02:57.2]} 5. d4 {[%clk 0:02:57.2]}
5... cxd4 {[%clk 0:02:57.6]} 6. Nxd4 {[%clk 0:02:58.1]} 6... Bb4 {[%clk
0:02:55.9]} 7. Nxc6 {[%clk 0:02:54.7]} 7... dxc6 {[%clk 0:02:52.4]} 8. Bd3
{[%clk 0:02:55.3]} 8... e5 {[%clk 0:02:47.6]} 9. O-O {[%clk 0:02:47.8]} 9... O-O
{[%clk 0:02:44.3]} 10. Qc2 {[%clk 0:02:47.2]} 10... Be6 {[%clk 0:02:36.9]} 11.
a3 {[%clk 0:02:44]} 11... Bc5 {[%clk 0:02:36.1]} 12. b4 {[%clk 0:02:42.9]} 12...
Bd4 {[%clk 0:02:36.3]} 13. Bb2 {[%clk 0:02:43.3]} 13... Nh5 {[%clk 0:02:08.9]}
14. g3 {[%clk 0:02:37.1]} 14... Qf6 {[%clk 0:02:06]} 15. Rfe1 {[%clk 0:02:03.3]}
15... Qg6 {[%clk 0:02:03.8]} 16. Kh1 {[%clk 0:01:58.7]} 16... Rad8 {[%clk
0:01:52]} 17. Bf1 {[%clk 0:01:49.4]} 17... Nf6 {[%clk 0:01:49.8]} 18. Bg2 {[%clk
0:01:48.5]} 18... Bxc4 {[%clk 0:01:49.3]} 19. Rad1 {[%clk 0:01:43.7]} 19... Ng4
{[%clk 0:01:47.5]} 20. Rd2 {[%clk 0:01:37]} 20... Bb6 {[%clk 0:01:46.4]} 21.
Red1 {[%clk 0:01:27.1]} 21... Rxd2 {[%clk 0:01:12.5]} 22. Rxd2 {[%clk 0:01:28]}
22... Qf6 {[%clk 0:01:03.7]} 23. Nd1 {[%clk 0:01:16.1]} 23... Rd8 {[%clk
0:00:53.8]} 24. Rxd8+ {[%clk 0:01:05.1]} 24... Qxd8 {[%clk 0:00:54.7]} 25. h3
{[%clk 0:01:05]} 25... Qxd1+ {[%clk 0:00:54.3]} 26. Qxd1 {[%clk 0:01:01.2]}
26... Nxf2+ {[%clk 0:00:54.5]} 27. Kh2 {[%clk 0:01:02]} 27... Nxd1 {[%clk
0:00:55.4]} 28. Bc1 {[%clk 0:01:02.2]} 28... Be3 {[%clk 0:00:53.6]} 29. Bxe3
{[%clk 0:01:01]} 29... Nxe3 {[%clk 0:00:54.5]} 0-1

[Event "Early-Titled-Tuesday-Blitz-January-23-2024"]
[Site "Chess.com"]
[Date "2024.01.23"]
[Round "1"]
[White "TioCridineno"]
[Black "Alonmindlin"]
[Result "0-1"]
[WhiteElo "2399"]
[BlackElo "2711"]
[TimeControl "180+1"]
[EndTime "8:05:32 PST"]
[Termination "Alonmindlin won by resignation"]

1. e4 {[%clk 0:03:00.9]} 1... g6 {[%clk 0:02:58.7]} 2. d4 {[%clk 0:03:00.3]}
2... Bg7 {[%clk 0:02:58.9]} 3. Nc3 {[%clk 0:03:00.9]} 3... d6 {[%clk 0:02:59.1]}
4. f4 {[%clk 0:03:00.8]} 4... Nf6 {[%clk 0:02:58.8]} 5. Nf3 {[%clk 0:03:00.4]}
5... O-O {[%clk 0:02:58.3]} 6. a3 {[%clk 0:03:00.4]} 6... Bg4 {[%clk 0:02:53.8]}
7. h3 {[%clk 0:02:58.7]} 7... Bxf3 {[%clk 0:02:53.7]} 8. Qxf3 {[%clk 0:02:59.6]}
8... e5 {[%clk 0:02:53.1]} 9. fxe5 {[%clk 0:02:56.1]} 9... dxe5 {[%clk
0:02:53.1]} 10. d5 {[%clk 0:02:56.5]} 10... c6 {[%clk 0:02:46.5]} 11. Bc4 {[%clk
0:02:54.6]} 11... cxd5 {[%clk 0:02:39.7]} 12. Nxd5 {[%clk 0:02:53.9]} 12... Nxd5
{[%clk 0:02:40]} 13. Bxd5 {[%clk 0:02:54.1]} 13... Nc6 {[%clk 0:02:40.2]} 14. c3
{[%clk 0:02:53.1]} 14... Qb6 {[%clk 0:02:25.6]} 15. Qe3 {[%clk 0:02:53.3]} 15...
Qa6 {[%clk 0:02:20.6]} 16. Qe2 {[%clk 0:02:49.5]} 16... Qb6 {[%clk 0:02:12]} 17.
Be3 {[%clk 0:02:47.6]} 17... Qc7 {[%clk 0:02:11.1]} 18. O-O {[%clk 0:02:46.5]}
18... b6 {[%clk 0:02:10]} 19. Qc4 {[%clk 0:02:37.2]} 19... Rac8 {[%clk
0:02:09.7]} 20. Rxf7 {[%clk 0:02:06.5]} 20... Rxf7 {[%clk 0:02:07.5]} 21. Rf1
{[%clk 0:02:07]} 21... Nd8 {[%clk 0:02:07.4]} 22. Qa2 {[%clk 0:01:34]} 22... Kf8
{[%clk 0:02:03.1]} 23. Bxf7 {[%clk 0:01:19.9]} 23... Nxf7 {[%clk 0:02:01.5]} 24.
Qe6 {[%clk 0:01:19.8]} 24... Re8 {[%clk 0:01:59]} 25. Qd5 {[%clk 0:01:19.4]}
25... Qe7 {[%clk 0:01:45.9]} 26. c4 {[%clk 0:01:12.3]} 26... Bf6 {[%clk
0:01:36.7]} 27. c5 {[%clk 0:01:10.5]} 27... Kg7 {[%clk 0:01:37]} 28. cxb6 {[%clk
0:01:09.7]} 28... axb6 {[%clk 0:01:37.2]} 29. Bxb6 {[%clk 0:01:09.5]} 29... Qe6
{[%clk 0:01:33.6]} 30. Qxe6 {[%clk 0:01:06.2]} 30... Rxe6 {[%clk 0:01:34.5]} 31.
Bc5 {[%clk 0:01:06.6]} 31... Be7 {[%clk 0:01:29.8]} 32. Be3 {[%clk 0:01:03.6]}
32... Nd6 {[%clk 0:01:29.4]} 33. Rb1 {[%clk 0:01:01.1]} 33... Nxe4 {[%clk
0:01:29]} 34. b4 {[%clk 0:01:01.1]} 34... Ra6 {[%clk 0:01:27.9]} 35. Rb3 {[%clk
0:01:00.7]} 35... h5 {[%clk 0:01:22.5]} 36. b5 {[%clk 0:01:01]} 36... Rxa3
{[%clk 0:01:20.9]} 37. Rxa3 {[%clk 0:00:57]} 37... Bxa3 {[%clk 0:01:21.8]} 38.
b6 {[%clk 0:00:57.7]} 38... Bc5 {[%clk 0:01:22.1]} 0-1

[Event "Early-Titled-Tuesday-Blitz-January-23-2024"]
[Site "Chess.com"]
[Date "2024.01.23"]
[Round "1"]
[White "BardArtem"]
[Black "FREZZY23"]
[Result "1-0"]
[WhiteElo "2816"]
[BlackElo "2449"]
[TimeControl "180+1"]
[EndTime "8:05:34 PST"]
[Termination "BardArtem won by resignation"]

1. e4 {[%clk 0:03:00.9]} 1... c5 {[%clk 0:02:56.7]} 2. c3 {[%clk 0:02:59]} 2...
Nf6 {[%clk 0:02:56.3]} 3. e5 {[%clk 0:02:59.2]} 3... Nd5 {[%clk 0:02:56.3]} 4.
Nf3 {[%clk 0:02:59.9]} 4... Nc6 {[%clk 0:02:54.9]} 5. Bc4 {[%clk 0:03:00.6]}
5... Nb6 {[%clk 0:02:54.5]} 6. Bb3 {[%clk 0:03:01.2]} 6... d6 {[%clk 0:02:53.8]}
7. exd6 {[%clk 0:03:02.1]} 7... Qxd6 {[%clk 0:02:53.6]} 8. O-O {[%clk
0:03:02.6]} 8... g6 {[%clk 0:02:53.6]} 9. Na3 {[%clk 0:03:01.7]} 9... Bg7 {[%clk
0:02:52.7]} 10. d4 {[%clk 0:03:02]} 10... cxd4 {[%clk 0:02:52.3]} 11. Nb5 {[%clk
0:03:02]} 11... Qd7 {[%clk 0:02:51.7]} 12. Nbxd4 {[%clk 0:03:02.1]} 12... Nxd4
{[%clk 0:02:50.8]} 13. Nxd4 {[%clk 0:03:03]} 13... e5 {[%clk 0:02:48.2]} 14. Nf3
{[%clk 0:03:01.4]} 14... Qxd1 {[%clk 0:02:48.2]} 15. Rxd1 {[%clk 0:03:02.3]}
15... Bg4 {[%clk 0:02:47.8]} 16. a4 {[%clk 0:02:59.6]} 16... O-O {[%clk
0:02:40.8]} 17. h3 {[%clk 0:02:56]} 17... Bxf3 {[%clk 0:02:36.5]} 18. gxf3
{[%clk 0:02:56.9]} 18... Rad8 {[%clk 0:02:36.3]} 19. Be3 {[%clk 0:02:55.3]}
19... Nc8 {[%clk 0:02:34.2]} 20. a5 {[%clk 0:02:52.3]} 20... a6 {[%clk 0:02:33]}
21. Bd5 {[%clk 0:02:50.3]} 21... Rd7 {[%clk 0:02:30.7]} 22. Rd2 {[%clk
0:02:50.4]} 22... Rfd8 {[%clk 0:02:30.5]} 23. Rad1 {[%clk 0:02:50.7]} 23... Kf8
{[%clk 0:02:27.3]} 24. Bc5+ {[%clk 0:02:48.3]} 24... Ne7 {[%clk 0:02:19]} 25. c4
{[%clk 0:02:28.9]} 25... Bh6 {[%clk 0:02:16.2]} 26. Re2 {[%clk 0:02:19.9]} 26...
f6 {[%clk 0:02:12.3]} 27. Rb1 {[%clk 0:02:10.1]} 27... Ke8 {[%clk 0:02:08.2]}
28. Bxe7 {[%clk 0:02:07.7]} 28... Kxe7 {[%clk 0:02:06.5]} 29. b4 {[%clk
0:02:07.7]} 29... Rb8 {[%clk 0:02:00.8]} 30. b5 {[%clk 0:02:06.1]} 30... axb5
{[%clk 0:01:59.4]} 31. Rxb5 {[%clk 0:02:05.4]} 31... Rc8 {[%clk 0:01:41.3]} 32.
Ra2 {[%clk 0:02:02.3]} 32... Kd6 {[%clk 0:01:35]} 33. a6 {[%clk 0:01:48.3]}
33... bxa6 {[%clk 0:01:32.6]} 34. Rxa6+ {[%clk 0:01:49.2]} 34... Ke7 {[%clk
0:01:31.7]} 35. Be6 {[%clk 0:01:47.1]} 35... Rd1+ {[%clk 0:01:31.2]} 36. Kg2
{[%clk 0:01:46.3]} 36... Rcd8 {[%clk 0:01:31.5]} 37. Rb7+ {[%clk 0:01:45.5]}
37... Kf8 {[%clk 0:01:23.4]} 38. Rf7+ {[%clk 0:01:45.3]} 38... Ke8 {[%clk
0:01:21.3]} 39. Raa7 {[%clk 0:01:42.2]} 39... Bf8 {[%clk 0:01:19.9]} 40. Rxh7
{[%clk 0:01:42.2]} 40... R8d6 {[%clk 0:01:11.9]} 41. Bf7+ {[%clk 0:01:30.3]}
41... Kd8 {[%clk 0:01:11.6]} 42. Bd5 {[%clk 0:01:28.7]} 42... Ke8 {[%clk
0:00:58.4]} 43. Ra8+ {[%clk 0:01:27.5]} 43... Rd8 {[%clk 0:00:58.6]} 44. Bc6+
{[%clk 0:01:28.4]} 1-0

[Event "Early-Titled-Tuesday-Blitz-January-23-2024"]
[Site "Chess.com"]
[Date "2024.01.23"]
[Round "1"]
[White "Anton_Demchenko"]
[Black "Mikhail_Golubev"]
[Result "1-0"]
[WhiteElo "2944"]
[BlackElo "2507"]
[TimeControl "180+1"]
[EndTime "8:05:38 PST"]
[Termination "Anton_Demchenko won by resignation"]

1. e4 {[%clk 0:03:00.9]} 1... c5 {[%clk 0:02:59.4]} 2. Nc3 {[%clk 0:03:00.4]}
2... d6 {[%clk 0:02:58.3]} 3. Bb5+ {[%clk 0:03:00.2]} 3... Bd7 {[%clk
0:02:56.4]} 4. a4 {[%clk 0:03:00.3]} 4... Nc6 {[%clk 0:02:53.1]} 5. f4 {[%clk
0:02:59.7]} 5... a6 {[%clk 0:02:51.3]} 6. Bc4 {[%clk 0:02:58.5]} 6... g6 {[%clk
0:02:42]} 7. Nf3 {[%clk 0:02:58.1]} 7... Bg7 {[%clk 0:02:42]} 8. O-O {[%clk
0:02:58.2]} 8... Nd4 {[%clk 0:02:31.9]} 9. d3 {[%clk 0:02:55.6]} 9... e6 {[%clk
0:02:22.5]} 10. Nxd4 {[%clk 0:02:47.5]} 10... Bxd4+ {[%clk 0:02:21.7]} 11. Kh1
{[%clk 0:02:47.4]} 11... Ne7 {[%clk 0:02:20.8]} 12. f5 {[%clk 0:02:44.6]} 12...
exf5 {[%clk 0:02:05.8]} 13. Bh6 {[%clk 0:02:42.3]} 13... b5 {[%clk 0:01:38.3]}
14. axb5 {[%clk 0:01:59.2]} 14... axb5 {[%clk 0:01:39.2]} 15. Rxa8 {[%clk
0:01:55.3]} 15... Qxa8 {[%clk 0:01:40.1]} 16. Nxb5 {[%clk 0:01:55.6]} 16... Bxb5
{[%clk 0:01:36]} 17. Bxb5+ {[%clk 0:01:55.4]} 17... Kd8 {[%clk 0:01:36.5]} 18.
c3 {[%clk 0:01:50.5]} 18... Bf6 {[%clk 0:01:30.1]} 19. Qb3 {[%clk 0:01:50.7]}
19... d5 {[%clk 0:00:59.9]} 20. Bf4 {[%clk 0:01:33.5]} 20... Qb7 {[%clk
0:00:38.2]} 21. Qa4 {[%clk 0:01:33.2]} 21... Nc8 {[%clk 0:00:25.7]} 22. Ba6
{[%clk 0:01:18.5]} 22... Qb6 {[%clk 0:00:24.2]} 23. Bxc8 {[%clk 0:01:18.2]} 1-0

[Event "Early-Titled-Tuesday-Blitz-January-23-2024"]
[Site "Chess.com"]
[Date "2024.01.23"]
[Round "1"]
[White "AlexPapasimakopoulos"]
[Black "VomDingJetztHer"]
[Result "1-0"]
[WhiteElo "2709"]
[BlackElo "2395"]
[TimeControl "180+1"]
[EndTime "8:05:38 PST"]
[Termination "AlexPapasimakopoulos won by checkmate"]

1. d4 {[%clk 0:03:00.9]} 1... Nf6 {[%clk 0:02:53]} 2. c4 {[%clk 0:03:01.2]} 2...
e6 {[%clk 0:02:53.6]} 3. Nc3 {[%clk 0:03:00.5]} 3... d5 {[%clk 0:02:51.6]} 4.
cxd5 {[%clk 0:03:00]} 4... Nxd5 {[%clk 0:02:52.3]} 5. e4 {[%clk 0:02:59.2]} 5...
Nxc3 {[%clk 0:02:52]} 6. bxc3 {[%clk 0:03:00.1]} 6... c5 {[%clk 0:02:52.7]} 7.
Rb1 {[%clk 0:02:59.7]} 7... Be7 {[%clk 0:02:46.6]} 8. Nf3 {[%clk 0:02:58.2]}
8... O-O {[%clk 0:02:46.3]} 9. Bc4 {[%clk 0:02:56.4]} 9... cxd4 {[%clk 0:02:45]}
10. cxd4 {[%clk 0:02:55.9]} 10... b6 {[%clk 0:02:43.1]} 11. O-O {[%clk
0:02:55.4]} 11... Bb7 {[%clk 0:02:42.4]} 12. Qe2 {[%clk 0:02:55.8]} 12... Nd7
{[%clk 0:02:42.1]} 13. Bf4 {[%clk 0:02:56.4]} 13... Nf6 {[%clk 0:02:41.8]} 14.
Bd3 {[%clk 0:02:54.2]} 14... Rc8 {[%clk 0:02:40.4]} 15. Rfe1 {[%clk 0:02:51.1]}
15... h6 {[%clk 0:02:27.2]} 16. h3 {[%clk 0:02:44]} 16... Re8 {[%clk 0:02:26.9]}
17. a4 {[%clk 0:02:43.3]} 17... Ba8 {[%clk 0:02:21.7]} 18. Rbd1 {[%clk
0:02:25.6]} 18... Qd7 {[%clk 0:02:20.6]} 19. Bb5 {[%clk 0:02:24.9]} 19... Bc6
{[%clk 0:02:20.3]} 20. Ne5 {[%clk 0:02:22.4]} 20... Bxb5 {[%clk 0:02:11.3]} 21.
axb5 {[%clk 0:02:21.9]} 21... Qb7 {[%clk 0:02:08.4]} 22. Nc6 {[%clk 0:02:19.6]}
22... a6 {[%clk 0:02:05.7]} 23. Nxe7+ {[%clk 0:02:18.4]} 23... Rxe7 {[%clk
0:02:06.3]} 24. bxa6 {[%clk 0:02:18.7]} 24... Qa7 {[%clk 0:02:01]} 25. Be5
{[%clk 0:02:15.9]} 25... Nd7 {[%clk 0:01:58.1]} 26. Bd6 {[%clk 0:02:15.6]} 26...
Ree8 {[%clk 0:01:58.2]} 27. Qb5 {[%clk 0:02:07.4]} 27... Ra8 {[%clk 0:01:56.9]}
28. Rc1 {[%clk 0:01:58.2]} 28... Nf6 {[%clk 0:01:54]} 29. Ra1 {[%clk 0:01:56.4]}
29... Red8 {[%clk 0:01:48.1]} 30. Be5 {[%clk 0:01:52.7]} 30... Nd7 {[%clk
0:01:47.9]} 31. Rec1 {[%clk 0:01:46.3]} 31... Nxe5 {[%clk 0:01:41.5]} 32. Qxe5
{[%clk 0:01:47.2]} 32... Rac8 {[%clk 0:01:40.1]} 33. Rxc8 {[%clk 0:01:41]} 33...
Rxc8 {[%clk 0:01:41]} 34. d5 {[%clk 0:01:39.9]} 34... exd5 {[%clk 0:01:38]} 35.
exd5 {[%clk 0:01:39.4]} 35... b5 {[%clk 0:01:37.3]} 36. d6 {[%clk 0:01:37.3]}
36... b4 {[%clk 0:01:34.1]} 37. Qd5 {[%clk 0:01:26.4]} 37... Rb8 {[%clk
0:01:21]} 38. Re1 {[%clk 0:01:11.1]} 38... b3 {[%clk 0:01:19]} 39. d7 {[%clk
0:01:11.3]} 39... Qc7 {[%clk 0:01:07.3]} 40. Re8+ {[%clk 0:01:09.1]} 40... Kh7
{[%clk 0:01:07.8]} 41. Qf5+ {[%clk 0:01:08.1]} 41... g6 {[%clk 0:01:02.3]} 42.
Qxf7# {[%clk 0:01:09]} 1-0

[Event "Early-Titled-Tuesday-Blitz-January-23-2024"]
[Site "Chess.com"]
[Date "2024.01.23"]
[Round "1"]
[White "JuniorJumper"]
[Black "SulfatoFerroso"]
[Result "1-0"]
[WhiteElo "2555"]
[BlackElo "2011"]
[TimeControl "180+1"]
[EndTime "8:05:40 PST"]
[Termination "JuniorJumper won on time"]

1. b3 {[%clk 0:03:00.9]} 1... d5 {[%clk 0:02:55.1]} 2. Bb2 {[%clk 0:03:01]} 2...
e6 {[%clk 0:02:54.3]} 3. e3 {[%clk 0:03:00.4]} 3... Nf6 {[%clk 0:02:54.4]} 4.
Nf3 {[%clk 0:02:57]} 4... c5 {[%clk 0:02:50.8]} 5. Bb5+ {[%clk 0:02:52.8]} 5...
Bd7 {[%clk 0:02:50.5]} 6. Be2 {[%clk 0:02:52.8]} 6... Nc6 {[%clk 0:02:47.5]} 7.
O-O {[%clk 0:02:52.9]} 7... Bd6 {[%clk 0:02:45.4]} 8. c4 {[%clk 0:02:52.6]} 8...
O-O {[%clk 0:02:38.6]} 9. cxd5 {[%clk 0:02:49.8]} 9... exd5 {[%clk 0:02:34.7]}
10. d4 {[%clk 0:02:49.9]} 10... cxd4 {[%clk 0:01:46.6]} 11. Nxd4 {[%clk
0:02:48.2]} 11... Ne5 {[%clk 0:01:44.8]} 12. Nd2 {[%clk 0:02:43.7]} 12... a6
{[%clk 0:01:19.2]} 13. N2f3 {[%clk 0:02:40.9]} 13... Qe7 {[%clk 0:01:07]} 14. h3
{[%clk 0:02:32.8]} 14... Rfe8 {[%clk 0:00:32.3]} 15. Rc1 {[%clk 0:02:31.4]}
15... Nxf3+ {[%clk 0:00:26.3]} 16. Nxf3 {[%clk 0:02:28.4]} 16... Ne4 {[%clk
0:00:26]} 17. Qxd5 {[%clk 0:02:26.5]} 17... Bc6 {[%clk 0:00:26.2]} 18. Qd4
{[%clk 0:02:24.5]} 18... f6 {[%clk 0:00:16.5]} 19. Rfd1 {[%clk 0:02:24.1]} 19...
Be5 {[%clk 0:00:15]} 20. Qc4+ {[%clk 0:02:19.6]} 20... Kh8 {[%clk 0:00:11.3]}
21. Nxe5 {[%clk 0:02:05.9]} 21... fxe5 {[%clk 0:00:12.2]} 22. Bf3 {[%clk
0:02:05.2]} 22... Qh4 {[%clk 0:00:06.1]} 23. Qe2 {[%clk 0:01:47.4]} 23... Bb5
{[%clk 0:00:03.7]} 24. Qc2 {[%clk 0:01:45.9]} 24... Ng5 {[%clk 0:00:02.2]} 25.
Bg4 {[%clk 0:01:42.5]} 25... e4 {[%clk 0:00:01.8]} 26. Qc7 {[%clk 0:01:38.5]}
1-0